[Event "4th Tamil Nadu Circuit-IM 2023"]
[Site "Pollachi"]
[Date "2023.11.08"]
[Round "5.4"]
[White "Nawin J J"]
[Black "Podolchenko, Evgeniy"]
[Result "0-1"]
[ECO "B12"]
[WhiteElo "2305"]
[BlackElo "2395"]
[Annotator "RC"]
[PlyCount "142"]
[EventDate "2023.10.23"]
[EventType "tourn"]
[EventCountry "IND"]
[SourceTitle "playchess.com"]
[Source "ChessBase"]
[SourceQuality "1"]
[TimeControl "5400+30"]

1. e4 {[%emt 0:00:47]} c6 {[%emt 0:01:11]} 2. d4 {[%emt 0:00:05]} d5 {[%emt 0:00:03]} 3. e5 {[%emt 0:00:09]} Bf5 {[%emt 0:00:14]} 4. Nf3 {[%emt 0:00:16]} e6 {[%emt 0:00:17]} 5. Be2 {[%emt 0:00:11]} Nd7 {[%emt 0:03:25]} 6. O-O {[%emt 0:00:21]} h6 {[%emt 0:00:38]} 7. Nbd2 {[%emt 0:00:15]} Ne7 {[%emt 0:00:14]} 8. Nb3 {[%emt 0:00:17]} Rc8 {[%emt 0:09:03]} 9. a4 {[%emt 0:04:08]} Bh7 {[%emt 0:04:04]} 10. a5 {[%emt 0:00:22]} a6 {[%emt 0:00:41]} 11. c3 {[%emt 0:09:04]} Nf5 {[%emt 0:10:03]} 12. Bd2 {[%emt 0:10:20]} Be7 {[%emt 0:11:08]} 13. c4 {[%emt 0:02:03]} dxc4 {[%emt 0:03:37]} 14. Bxc4 {[%emt 0:00:09]} O-O {[%emt 0:00:35]} 15. Bc3 {[%emt 0:01:15]} Qc7 {[%emt 0:06:58]} 16. Nbd2 {[%emt 0:02:26]} Rfd8 {[%emt 0:11:51]} 17. Re1 {[%emt 0:01:40]} Nf8 {[%emt 0:01:00]} 18. b4 {[%emt 0:00:29]} Nh4 {[%emt 0:05:24]} 19. Ne4 {[%emt 0:01:07]} Nxf3+ {[%emt 0:02:50]} 20. Qxf3 {[%emt 0:00:06]} Rb8 {[%emt 0:01:01]} 21. Qg3 {[%emt 0:11:56]} Bf5 {[%emt 0:00:25]} 22. Qe3 {[%emt 0:01:17]} Ng6 {[%emt 0:01:51]} 23. g3 {[%emt 0:01:12]} Bf8 {[%emt 0:00:47]} 24. Nc5 {[%emt 0:04:41]} Ne7 {[%emt 0:01:52]} 25. Rac1 {[%emt 0:03:21]} Nd5 {[%emt 0:01:09]} 26. Qf3 {[%emt 0:01:12]} Bxc5 {[%emt 0:01:14]} 27. dxc5 {[%emt 0:00:13]} Qe7 {[%emt 0:00:40]} 28. Red1 {[%emt 0:00:55]} Qg5 {[%emt 0:00:41]} 29. Be2 {[%emt 0:02:20]} Rd7 {[%emt 0:04:37]} 30. h4 {[%emt 0:01:43]} Qg6 {[%emt 0:00:52]} 31. h5 {[%emt 0:00:13]} Qh7 {[%emt 0:00:40]} 32. g4 {[%emt 0:00:38]} Be4 {[%emt 0:01:08]} 33. Qg3 {[%emt 0:00:06]} Rbd8 {[%emt 0:03:18]} 34. Be1 {[%emt 0:00:48]} g5 {[%emt 0:02:22]} 35. hxg6 {[%emt 0:05:44]} Qxg6 {[%emt 0:00:03]} 36. f3 {[%emt 0:01:45]} Bc2 {[%emt 0:00:01]} 37. Rd2 {[%emt 0:00:12]} Ba4 {[%emt 0:02:09]} 38. Ra1 {[%emt 0:08:34]} Nc3 {[%emt 0:01:59]} 39. Rb2 {[%emt 0:02:48]} Nxe2+ {[%emt 0:00:02]} 40. Rxe2 {[%emt 0:00:06]} Bd1 {[%emt 0:00:15]} 41. Rh2 {[%emt 0:01:34]} Rd3 {[%emt 0:01:20]} 42. Qh4 {[%emt 0:01:47]} Kg7 {[%emt 0:01:45]} 43. Raa2 {[%emt 0:04:18]} Bxf3 {[%emt 0:00:31]} 44. Bd2 {[%emt 0:10:00]} Qxg4+ {[%emt 0:00:02]} 45. Qxg4+ {[%emt 0:00:09]} Bxg4 {[%emt 0:00:02]} 46. Bxh6+ {[%emt 0:00:13]} Kg6 {[%emt 0:00:01]} 47. Rag2 {[%emt 0:00:50]} Kf5 {[%emt 0:01:46]} 48. Rh4 {[%emt 0:02:30]} Rg8 {[%emt 0:00:30]} 49. Kh2 {[%emt 0:00:15]} Rg6 {[%emt 0:01:43]} 50. Rf2+ {[%emt 0:02:47]} Rf3 {[%emt 0:00:26]} 51. Rxf3+ {[%emt 0:00:11]} Bxf3 {[%emt 0:00:01]} 52. Be3 {[%emt 0:00:08]} Kxe5 {[%emt 0:04:46]} 53. Rf4 {[%emt 0:01:14]} Rf6 {[%emt 0:00:11]} 54. Rh4 {[%emt 0:00:05]} Rf5 {[%emt 0:00:15]} 55. Kg3 {[%emt 0:00:05]} Be4 {[%emt 0:00:27]} 56. Bf4+ {[%emt 0:00:28]} Kd5 {[%emt 0:00:18]} 57. Bd6 {[%emt 0:00:30]} e5 {[%emt 0:00:44]} 58. Rh8 {[%emt 0:00:03]} Rf3+ {[%emt 0:00:19]} 59. Kg4 {[%emt 0:00:04]} Rf2 {[%emt 0:00:51]} 60. Rb8 {[%emt 0:00:16]} Rg2+ {[%emt 0:02:51]} 61. Kh3 {[%emt 0:00:08]} Rg6 {[%emt 0:00:39]} 62. Rxb7 {[%emt 0:00:06]} Bf5+ {[%emt 0:00:17]} 63. Kh2 {[%emt 0:00:13]} Be6 {[%emt 0:00:05]} 64. Rb6 {[%emt 0:00:31]} e4 {[%emt 0:01:02]} 65. Rxa6 {[%emt 0:00:19]} e3 {[%emt 0:00:12]} 66. Bf4 {[%emt 0:00:04]} Ke4 {[%emt 0:01:27]} 67. Bxe3 {[%emt 0:00:45]} Kxe3 {[%emt 0:00:02]} 68. Rxc6 {[%emt 0:00:06]} Kf2 {[%emt 0:00:04]} 69. Rxe6 {[%emt 0:00:05]} Rxe6 {[%emt 0:00:40]} 70. Kh3 {[%emt 0:00:04]} Kf3 {[%emt 0:00:08]} 71. Kh2 {[%emt 0:00:08]} Rc6 {[%emt 0:00:27]} 0-1

[Event "4th Tamil Nadu Circuit-IM 2023"]
[Site "Pollachi"]
[Date "2023.11.08"]
[Round "5.5"]
[White "Laddha, Shubh Jayesh"]
[Black "Nandhidhaa, P V"]
[Result "1/2-1/2"]
[ECO "C11"]
[WhiteElo "2373"]
[BlackElo "2260"]
[Annotator "RC"]
[PlyCount "85"]
[EventDate "2023.10.23"]
[EventType "tourn"]
[EventCountry "IND"]
[SourceTitle "playchess.com"]
[Source "ChessBase"]
[SourceQuality "1"]
[TimeControl "5400+30"]

1. e4 {[%emt 0:01:50]} e6 {[%emt 0:00:07]} 2. d4 {[%emt 0:00:05]} d5 {[%emt 0:00:05]} 3. Nc3 {[%emt 0:00:03]} Nf6 {[%emt 0:00:05]} 4. e5 {[%emt 0:00:04]} Nfd7 {[%emt 0:00:07]} 5. f4 {[%emt 0:00:03]} c5 {[%emt 0:00:06]} 6. Nf3 {[%emt 0:00:02]} Nc6 {[%emt 0:00:08]} 7. Be3 {[%emt 0:00:04]} Be7 {[%emt 0:00:05]} 8. Qd2 {[%emt 0:00:05]} a6 {[%emt 0:00:12]} 9. Bd3 {[%emt 0:01:02]} b5 {[%emt 0:00:33]} 10. Qf2 {[%emt 0:01:35]} b4 {[%emt 0:03:07]} 11. Nd1 {[%emt 0:02:29]} O-O {[%emt 0:07:10]} 12. O-O {[%emt 0:07:18]} f6 {[%emt 0:09:42]} 13. c3 {[%emt 0:11:06]} bxc3 {[%emt 0:08:02]} 14. bxc3 {[%emt 0:01:10]} cxd4 {[%emt 0:00:08]} 15. cxd4 {[%emt 0:00:42]} f5 {[%emt 0:06:47]} 16. h3 {[%emt 0:06:45]} a5 {[%emt 0:01:23]} 17. g4 {[%emt 0:16:06]} Ba6 {[%emt 0:07:07]} 18. Bxa6 {[%emt 0:01:17]} Rxa6 {[%emt 0:00:02]} 19. Nc3 {[%emt 0:04:41]} Nb6 {[%emt 0:02:25]} 20. Ne2 {[%emt 0:04:23]} Nc4 {[%emt 0:00:12]} 21. Kh1 {[%emt 0:24:50]} Rb6 {[%emt 0:05:05]} 22. Rg1 {[%emt 0:02:16]} Nb4 {[%emt 0:04:10]} 23. Rad1 {[%emt 0:01:45]} Nxa2 {[%emt 0:03:30]} 24. gxf5 {[%emt 0:02:49]} exf5 {[%emt 0:02:07]} 25. Rg3 {[%emt 0:00:46]} Kh8 {[%emt 0:04:02]} 26. Rdg1 {[%emt 0:02:11]} Bh4 {[%emt 0:02:42]} 27. Nxh4 {[%emt 0:00:40]} Qxh4 {[%emt 0:00:04]} 28. Qg2 {[%emt 0:02:18]} g6 {[%emt 0:02:14]} 29. Qxd5 {[%emt 0:00:50]} Nxe3 {[%emt 0:03:47]} 30. Rxe3 {[%emt 0:00:59]} Qf2 {[%emt 0:00:26]} 31. Qf3 {[%emt 0:00:59]} Qxf3+ {[%emt 0:00:11]} 32. Rxf3 {[%emt 0:00:02]} Rb2 {[%emt 0:00:36]} 33. Nc3 {[%emt 0:01:06]} Nxc3 {[%emt 0:03:17]} 34. Rxc3 {[%emt 0:00:04]} Rd2 {[%emt 0:00:04]} 35. Rc4 {[%emt 0:04:48]} Rd8 {[%emt 0:00:14]} 36. e6 {[%emt 0:00:20]} Re8 {[%emt 0:02:51]} 37. Re1 {[%emt 0:00:13]} h6 {[%emt 0:02:31]} 38. h4 {[%emt 0:00:35]} g5 {[%emt 0:01:35]} 39. hxg5 {[%emt 0:00:38]} hxg5 {[%emt 0:00:01]} 40. fxg5 {[%emt 0:00:12]} Kg7 {[%emt 0:00:02]} 41. Kg1 {[%emt 0:00:47]} Kg6 {[%emt 0:00:21]} 42. Ra4 {[%emt 0:00:54]} Kxg5 {[%emt 0:00:54]} 43. Rxa5 {[%emt 0:00:24]} 1/2-1/2

[Event "4th Tamil Nadu Circuit-IM 2023"]
[Site "Pollachi"]
[Date "2023.11.09"]
[Round "6.1"]
[White "Abdyzhapar, Asylbek"]
[Black "Nandhidhaa, P V"]
[Result "0-1"]
[ECO "E94"]
[WhiteElo "2326"]
[BlackElo "2272"]
[Annotator "RC"]
[PlyCount "70"]
[EventDate "2023.10.23"]
[EventType "tourn"]
[EventCountry "IND"]
[SourceTitle "playchess.com"]
[Source "ChessBase"]
[SourceQuality "1"]
[TimeControl "5400+30"]

1. d4 {[%emt 0:00:01]} Nf6 {[%emt 0:00:08]} 2. c4 {[%emt 0:00:03]} g6 {[%emt 0:00:10]} 3. Nc3 {[%emt 0:00:06]} Bg7 {[%emt 0:00:07]} 4. e4 {[%emt 0:00:20]} d6 {[%emt 0:00:06]} 5. Nf3 {[%emt 0:00:33]} O-O {[%emt 0:00:12]} 6. Be2 {[%emt 0:00:03]} e5 {[%emt 0:00:14]} 7. O-O {[%emt 0:00:31]} Bg4 {[%emt 0:00:18]} 8. d5 {[%emt 0:00:44]} a5 {[%emt 0:00:24]} 9. Be3 {[%emt 0:00:16]} Na6 {[%emt 0:00:47]} 10. Nd2 {[%emt 0:01:27]} Bd7 {[%emt 0:02:20]} 11. a3 {[%emt 0:01:21]} Ne8 {[%emt 0:04:46]} 12. Rb1 {[%emt 0:01:23]} f5 {[%emt 0:00:21]} 13. f3 {[%emt 0:00:06]} Nf6 {[%emt 0:02:45]} 14. b4 {[%emt 0:00:25]} b6 {[%emt 0:00:13]} 15. c5 {[%emt 0:06:29]} axb4 {[%emt 0:03:30]} 16. axb4 {[%emt 0:00:07]} bxc5 {[%emt 0:00:18]} 17. Bxa6 {[%emt 0:01:56]} cxb4 {[%emt 0:02:10]} 18. Bb7 {[%emt 0:02:36]} bxc3 {[%emt 0:15:10]} 19. Bxa8 {[%emt 0:00:39]} Qxa8 {[%emt 0:00:11]} 20. Ra1 {[%emt 0:06:19]} Qb8 {[%emt 0:01:03]} 21. Ba7 {[%emt 0:14:43]} Qb5 {[%emt 0:06:24]} 22. Nb1 {[%emt 0:04:20]} Qb2 {[%emt 0:02:54]} 23. Na3 {[%emt 0:08:44]} fxe4 {[%emt 0:00:26]} 24. Nc2 {[%emt 0:01:36]} exf3 {[%emt 0:03:23]} 25. gxf3 {[%emt 0:02:44]} Qb7 {[%emt 0:03:47]} 26. Ra5 {[%emt 0:01:37]} Bh3 {[%emt 0:04:42]} 27. Re1 {[%emt 0:01:24]} Nh5 {[%emt 0:11:32]} 28. Re3 {[%emt 0:05:12]} Rf5 {[%emt 0:04:47]} 29. f4 {[%emt 0:06:18]} Nxf4 {[%emt 0:00:56]} 30. Rxc3 {[%emt 0:00:20]} Qb2 {[%emt 0:15:11]} 31. Re3 {[%emt 0:08:31]} Bg4 {[%emt 0:04:35]} 32. Qxg4 {[%emt 0:02:35]} Qxc2 {[%emt 0:00:01]} 33. h4 {[%emt 0:02:06]} Qc1+ 34. Kh2 {[%emt 0:00:30]} Qd2+ 35. Kg1 {[%emt 0:00:30]} Qxa5 0-1

[Event "4th Tamil Nadu Circuit-IM 2023"]
[Site "Pollachi"]
[Date "2023.11.09"]
[Round "6.2"]
[White "Podolchenko, Evgeniy"]
[Black "Laddha, Shubh Jayesh"]
[Result "0-1"]
[ECO "A09"]
[WhiteElo "2395"]
[BlackElo "2373"]
[Annotator "RC"]
[PlyCount "64"]
[EventDate "2023.10.23"]
[EventType "tourn"]
[EventCountry "IND"]
[SourceTitle "playchess.com"]
[Source "ChessBase"]
[SourceQuality "1"]
[TimeControl "5400+30"]

1. Nf3 {[%emt 0:00:04]} d5 {[%emt 0:00:06]} 2. c4 {[%emt 0:00:08]} d4 {[%emt 0:00:45]} 3. e3 {[%emt 0:01:32]} Nc6 {[%emt 0:00:18]} 4. b4 {[%emt 0:02:32]} dxe3 {[%emt 0:00:28]} 5. fxe3 {[%emt 0:00:03]} Nxb4 {[%emt 0:00:20]} 6. d4 {[%emt 0:00:44]} e5 {[%emt 0:00:20]} 7. a3 {[%emt 0:19:09]} Nc6 {[%emt 0:00:25]} 8. Bd3 {[%emt 0:02:53]} exd4 {[%emt 0:14:57]} 9. exd4 {[%emt 0:03:54]} Nxd4 {[%emt 0:06:03]} 10. O-O {[%emt 0:01:04]} Nf6 {[%emt 0:04:23]} 11. Kh1 {[%emt 0:01:43]} Be7 {[%emt 0:07:11]} 12. Nxd4 {[%emt 0:13:48]} Qxd4 {[%emt 0:00:07]} 13. Qc2 {[%emt 0:00:15]} Be6 {[%emt 0:06:12]} 14. Bb2 {[%emt 0:01:16]} Qc5 {[%emt 0:04:12]} 15. Nc3 {[%emt 0:07:32]} O-O-O {[%emt 0:04:17]} 16. Ne4 {[%emt 0:01:00]} Nxe4 {[%emt 0:06:51]} 17. Bxe4 {[%emt 0:01:07]} Qxc4 {[%emt 0:02:26]} 18. Bxg7 {[%emt 0:01:06]} Qxc2 {[%emt 0:12:51]} 19. Bxc2 {[%emt 0:00:12]} Rhg8 {[%emt 0:00:49]} 20. Be5 {[%emt 0:00:20]} Rd2 {[%emt 0:04:48]} 21. Be4 {[%emt 0:00:07]} Re2 {[%emt 0:01:37]} 22. Rae1 {[%emt 0:00:30]} Rxe1 {[%emt 0:01:22]} 23. Rxe1 {[%emt 0:00:02]} h5 {[%emt 0:01:06]} 24. a4 {[%emt 0:00:36]} Rd8 {[%emt 0:01:08]} 25. g3 {[%emt 0:01:31]} Bg4 {[%emt 0:06:20]} 26. Rf1 {[%emt 0:05:21]} Rd1 {[%emt 0:01:18]} 27. Rxd1 {[%emt 0:00:06]} Bxd1 {[%emt 0:00:04]} 28. Bc3 {[%emt 0:01:19]} Bxa4 {[%emt 0:02:40]} 29. Bf3 {[%emt 0:00:02]} Bc6 {[%emt 0:01:06]} 30. Bxc6 {[%emt 0:00:02]} bxc6 {[%emt 0:00:04]} 31. Kg2 {[%emt 0:00:05]} Kd7 {[%emt 0:00:22]} 32. Kf3 {[%emt 0:00:06]} f5 {[%emt 0:00:14]} 0-1

[Event "4th Tamil Nadu Circuit-IM 2023"]
[Site "Pollachi"]
[Date "2023.11.09"]
[Round "6.3"]
[White "Gochelashvili, David"]
[Black "Nawin J J"]
[Result "1-0"]
[ECO "B31"]
[WhiteElo "2304"]
[BlackElo "2305"]
[Annotator "RC"]
[PlyCount "71"]
[EventDate "2023.10.23"]
[EventType "tourn"]
[EventCountry "IND"]
[SourceTitle "playchess.com"]
[Source "ChessBase"]
[SourceQuality "1"]
[TimeControl "5400+30"]

1. e4 {[%emt 0:00:06]} c5 {[%emt 0:00:14]} 2. Nf3 {[%emt 0:00:07]} Nc6 {[%emt 0:00:06]} 3. Bb5 {[%emt 0:02:58]} g6 {[%emt 0:00:10]} 4. O-O {[%emt 0:00:12]} Bg7 {[%emt 0:00:16]} 5. Re1 e5 {[%emt 0:00:04]} 6. d3 {[%emt 0:05:31]} Nge7 {[%emt 0:00:32]} 7. Be3 {[%emt 0:22:51]} b6 {[%emt 0:00:35]} 8. c3 {[%emt 0:01:49]} O-O {[%emt 0:05:24]} 9. d4 {[%emt 0:00:52]} d6 {[%emt 0:00:18]} 10. d5 {[%emt 0:06:54]} Nb8 {[%emt 0:00:10]} 11. b4 {[%emt 0:00:15]} a6 {[%emt 0:00:36]} 12. Be2 {[%emt 0:06:42]} Nd7 {[%emt 0:00:15]} 13. a4 {[%emt 0:01:17]} h6 {[%emt 0:00:42]} 14. Nfd2 {[%emt 0:03:39]} f5 {[%emt 0:02:14]} 15. f3 {[%emt 0:00:04]} cxb4 {[%emt 0:03:11]} 16. cxb4 {[%emt 0:04:00]} Nf6 {[%emt 0:00:55]} 17. Na3 {[%emt 0:00:55]} Bd7 {[%emt 0:05:05]} 18. b5 {[%emt 0:04:13]} a5 {[%emt 0:02:05]} 19. Rc1 {[%emt 0:00:05]} Kh7 {[%emt 0:04:47]} 20. Rc6 {[%emt 0:03:50]} Bxc6 {[%emt 0:10:10]} 21. bxc6 {[%emt 0:00:29]} Nfxd5 {[%emt 0:03:10]} 22. exd5 {[%emt 0:00:17]} Nxd5 {[%emt 0:00:05]} 23. Ndc4 {[%emt 0:01:54]} Nxe3 {[%emt 0:06:16]} 24. Nxe3 {[%emt 0:00:14]} d5 {[%emt 0:00:07]} 25. Qxd5 {[%emt 0:03:46]} Qe7 {[%emt 0:00:40]} 26. Nb5 {[%emt 0:00:45]} Qb4 {[%emt 0:00:56]} 27. Rc1 {[%emt 0:07:45]} h5 {[%emt 0:13:22]} 28. Qc4 {[%emt 0:11:51]} Bh6 {[%emt 0:09:53]} 29. Nd5 {[%emt 0:00:30]} Qb2 {[%emt 0:00:30]} 30. Rd1 {[%emt 0:00:30]} e4 {[%emt 0:00:30]} 31. c7 {[%emt 0:00:30]} Qe5 {[%emt 0:00:30]} 32. Qd4 {[%emt 0:00:30]} Qe6 {[%emt 0:00:30]} 33. f4 {[%emt 0:00:30]} Rae8 {[%emt 0:00:30]} 34. g3 {[%emt 0:00:30]} g5 {[%emt 0:00:30]} 35. Bxh5 {[%emt 0:00:30]} Rc8 {[%emt 0:00:30]} 36. Qxb6 {[%emt 0:00:30]} 1-0

[Event "4th Tamil Nadu Circuit-IM 2023"]
[Site "Pollachi"]
[Date "2023.11.09"]
[Round "6.4"]
[White "Sekar, B."]
[Black "Shaik Sumer Arsh"]
[Result "1-0"]
[ECO "C02"]
[WhiteElo "2320"]
[BlackElo "2273"]
[Annotator "RC"]
[PlyCount "103"]
[EventDate "2023.10.23"]
[EventType "tourn"]
[EventCountry "IND"]
[SourceTitle "playchess.com"]
[Source "ChessBase"]
[SourceQuality "1"]
[TimeControl "5400+30"]

1. e4 {[%emt 0:00:01]} e6 {[%emt 0:00:12]} 2. d4 {[%emt 0:00:07]} d5 {[%emt 0:00:07]} 3. e5 {[%emt 0:00:03]} c5 {[%emt 0:00:08]} 4. c3 {[%emt 0:00:01]} Nc6 {[%emt 0:00:07]} 5. Nf3 {[%emt 0:00:04]} Qb6 {[%emt 0:00:05]} 6. a3 {[%emt 0:00:04]} c4 {[%emt 0:00:06]} 7. Nbd2 {[%emt 0:00:37]} Na5 {[%emt 0:00:07]} 8. Rb1 {[%emt 0:00:45]} Bd7 {[%emt 0:00:12]} 9. h4 {[%emt 0:00:25]} Ne7 {[%emt 0:00:35]} 10. h5 {[%emt 0:01:57]} h6 {[%emt 0:00:11]} 11. b4 {[%emt 0:08:18]} cxb3 {[%emt 0:00:35]} 12. Nxb3 {[%emt 0:00:04]} Ba4 {[%emt 0:21:18]} 13. Nfd2 {[%emt 0:07:31]} Rc8 {[%emt 0:01:05]} 14. Rh3 {[%emt 0:06:45]} Nec6 {[%emt 0:21:30]} 15. Bd3 {[%emt 0:16:59]} Nxb3 {[%emt 0:19:32]} 16. Nxb3 {[%emt 0:00:05]} Na5 {[%emt 0:00:31]} 17. Bc2 {[%emt 0:01:42]} Nxb3 {[%emt 0:06:46]} 18. Bxb3 {[%emt 0:00:10]} Bxb3 {[%emt 0:00:02]} 19. Qxb3 {[%emt 0:00:23]} Qxb3 {[%emt 0:00:26]} 20. Rxb3 {[%emt 0:00:01]} Rc7 {[%emt 0:03:22]} 21. Rg3 {[%emt 0:03:10]} Kd7 {[%emt 0:09:00]} 22. Ke2 {[%emt 0:03:46]} Kc6 {[%emt 0:01:27]} 23. a4 {[%emt 0:05:53]} b6 {[%emt 0:00:05]} 24. Kd3 {[%emt 0:02:24]} a5 {[%emt 0:03:16]} 25. Bd2 {[%emt 0:02:40]} Kb7 {[%emt 0:00:34]} 26. Rb1 {[%emt 0:00:32]} Ka6 {[%emt 0:03:13]} 27. Rb2 {[%emt 0:05:27]} Rh7 {[%emt 0:01:19]} 28. Rc2 {[%emt 0:01:26]} Be7 {[%emt 0:03:22]} 29. c4 {[%emt 0:04:30]} dxc4+ {[%emt 0:00:12]} 30. Rxc4 {[%emt 0:00:11]} Rd7 {[%emt 0:00:13]} 31. Rc8 {[%emt 0:02:53]} Bh4 {[%emt 0:01:11]} 32. Rf3 {[%emt 0:02:29]} f6 {[%emt 0:02:32]} 33. Bf4 {[%emt 0:00:23]} Bg5 {[%emt 0:01:03]} 34. g3 {[%emt 0:06:21]} f5 {[%emt 0:01:29]} 35. Rc6 {[%emt 0:02:47]} Re7 {[%emt 0:00:01]} 36. d5 {[%emt 0:00:48]} exd5 {[%emt 0:00:36]} 37. Kd4 {[%emt 0:00:31]} Kb7 {[%emt 0:01:25]} 38. Kxd5 {[%emt 0:01:18]} Bxf4 {[%emt 0:00:29]} 39. gxf4 {[%emt 0:00:41]} Rd7+ {[%emt 0:00:45]} 40. Rd6 {[%emt 0:00:06]} Rc7 {[%emt 0:00:21]} 41. Rb3 {[%emt 0:00:26]} Rc5+ {[%emt 0:00:45]} 42. Ke6 {[%emt 0:00:02]} Rh8 {[%emt 0:00:37]} 43. Rdxb6+ {[%emt 0:00:25]} Ka7 {[%emt 0:00:16]} 44. Rb7+ {[%emt 0:00:20]} Ka8 {[%emt 0:00:01]} 45. R7b5 {[%emt 0:01:05]} Rc6+ {[%emt 0:00:15]} 46. Kxf5 {[%emt 0:00:08]} Rf8+ {[%emt 0:00:10]} 47. Ke4 {[%emt 0:00:18]} Rc4+ {[%emt 0:00:13]} 48. Kd5 {[%emt 0:00:09]} Rxa4 {[%emt 0:00:05]} 49. e6 {[%emt 0:04:17]} Rf5+ {[%emt 0:01:57]} 50. Kc6 {[%emt 0:01:01]} Rf8 {[%emt 0:00:20]} 51. e7 {[%emt 0:01:27]} Rf6+ {[%emt 0:00:20]} 52. Kd5 {[%emt 0:00:08]} 1-0

[Event "4th Tamil Nadu Circuit-IM 2023"]
[Site "Pollachi"]
[Date "2023.11.09"]
[Round "6.5"]
[White "Srihari L"]
[Black "Laddha, Yash Jayesh"]
[Result "1-0"]
[ECO "C54"]
[WhiteElo "2225"]
[BlackElo "2171"]
[Annotator "RC"]
[PlyCount "81"]
[EventDate "2023.10.23"]
[EventType "tourn"]
[EventCountry "IND"]
[SourceTitle "playchess.com"]
[Source "ChessBase"]
[SourceQuality "1"]
[TimeControl "5400+30"]

1. e4 {[%emt 0:00:02]} e5 {[%emt 0:00:03]} 2. Nf3 {[%emt 0:00:05]} Nc6 {[%emt 0:00:03]} 3. Bc4 {[%emt 0:00:13]} Nf6 {[%emt 0:00:04]} 4. d3 {[%emt 0:00:07]} Bc5 {[%emt 0:00:05]} 5. c3 {[%emt 0:00:15]} d6 {[%emt 0:00:05]} 6. O-O {[%emt 0:00:12]} a5 {[%emt 0:00:06]} 7. Nbd2 {[%emt 0:03:12]} O-O {[%emt 0:00:16]} 8. h3 {[%emt 0:00:51]} Be6 {[%emt 0:04:01]} 9. Bb5 {[%emt 0:00:12]} Ba7 {[%emt 0:03:21]} 10. Re1 {[%emt 0:00:51]} Ne7 {[%emt 0:00:24]} 11. Ba4 {[%emt 0:05:01]} Ng6 {[%emt 0:00:39]} 12. Nf1 {[%emt 0:00:11]} Nh5 {[%emt 0:13:10]} 13. d4 {[%emt 0:05:39]} f6 {[%emt 0:18:44]} 14. Be3 {[%emt 0:04:22]} Nhf4 {[%emt 0:02:09]} 15. Ng3 {[%emt 0:07:07]} Qc8 {[%emt 0:02:56]} 16. Bb5 {[%emt 0:16:32]} c6 {[%emt 0:07:29]} 17. Bf1 {[%emt 0:00:11]} Bb8 {[%emt 0:15:04]} 18. c4 {[%emt 0:07:05]} d5 {[%emt 0:04:21]} 19. cxd5 {[%emt 0:02:59]} cxd5 {[%emt 0:00:10]} 20. Rc1 {[%emt 0:00:45]} Qe8 {[%emt 0:05:08]} 21. dxe5 {[%emt 0:07:23]} fxe5 {[%emt 0:01:26]} 22. Bc5 {[%emt 0:04:08]} Rf6 {[%emt 0:02:12]} 23. Ng5 {[%emt 0:00:06]} d4 {[%emt 0:02:12]} 24. Nh5 {[%emt 0:00:18]} Kh8 {[%emt 0:08:10]} 25. Nxf6 {[%emt 0:01:36]} gxf6 {[%emt 0:00:05]} 26. Nxe6 {[%emt 0:02:50]} Nxe6 {[%emt 0:00:06]} 27. Qf3 {[%emt 0:01:38]} Kg7 {[%emt 0:03:02]} 28. Qb3 {[%emt 0:00:04]} Qf7 {[%emt 0:01:44]} 29. Ba3 {[%emt 0:04:55]} Ba7 {[%emt 0:01:33]} 30. Bc4 {[%emt 0:00:48]} Ngf4 {[%emt 0:01:24]} 31. Kh2 {[%emt 0:08:31]} a4 {[%emt 0:01:57]} 32. Qb5 {[%emt 0:01:41]} Kh8 {[%emt 0:01:24]} 33. g3 {[%emt 0:02:54]} Qh5 {[%emt 0:01:30]} 34. Bxe6 {[%emt 0:03:04]} Nxe6 {[%emt 0:01:35]} 35. Qxb7 {[%emt 0:01:11]} Rg8 {[%emt 0:00:41]} 36. Rc8 {[%emt 0:05:19]} Qf3 {[%emt 0:00:29]} 37. Rxg8+ {[%emt 0:00:06]} Kxg8 {[%emt 0:00:01]} 38. Qa8+ {[%emt 0:00:10]} Kg7 {[%emt 0:00:18]} 39. Qxa7+ {[%emt 0:00:02]} Kg6 {[%emt 0:00:36]} 40. Kg1 {[%emt 0:00:06]} Ng5 {[%emt 0:01:10]} 41. Qd7 {[%emt 0:00:08]} 1-0

[Event "4th Tamil Nadu Circuit-IM 2023"]
[Site "Pollachi"]
[Date "2023.11.10"]
[Round "7.1"]
[White "Laddha, Yash Jayesh"]
[Black "Abdyzhapar, Asylbek"]
[Result "0-1"]
[ECO "B90"]
[WhiteElo "2171"]
[BlackElo "2326"]
[Annotator "RC"]
[PlyCount "110"]
[EventDate "2023.10.23"]
[EventType "tourn"]
[EventCountry "IND"]
[SourceTitle "playchess.com"]
[Source "ChessBase"]
[SourceQuality "1"]
[TimeControl "5400+30"]

1. e4 {[%emt 0:00:03]} c5 {[%emt 0:00:46]} 2. Nf3 {[%emt 0:00:03]} d6 {[%emt 0:00:04]} 3. d4 {[%emt 0:00:03]} cxd4 {[%emt 0:00:05]} 4. Nxd4 {[%emt 0:00:03]} Nf6 {[%emt 0:00:04]} 5. Nc3 {[%emt 0:00:03]} a6 {[%emt 0:00:03]} 6. h3 {[%emt 0:00:04]} e5 {[%emt 0:00:04]} 7. Nde2 {[%emt 0:00:03]} h5 {[%emt 0:00:05]} 8. g3 {[%emt 0:02:20]} Be7 {[%emt 0:00:35]} 9. Bg2 {[%emt 0:00:04]} b5 {[%emt 0:01:13]} 10. Nd5 {[%emt 0:00:31]} Nxd5 {[%emt 0:00:23]} 11. Qxd5 {[%emt 0:00:06]} Ra7 {[%emt 0:00:06]} 12. Be3 {[%emt 0:00:03]} Be6 {[%emt 0:01:01]} 13. Qd2 {[%emt 0:01:55]} Rb7 {[%emt 0:00:20]} 14. O-O {[%emt 0:01:42]} Nd7 {[%emt 0:06:14]} 15. Nc3 {[%emt 0:07:30]} Nf6 {[%emt 0:01:23]} 16. f4 {[%emt 0:23:25]} h4 {[%emt 0:09:41]} 17. g4 {[%emt 0:03:59]} b4 {[%emt 0:01:02]} 18. Nd5 {[%emt 0:01:38]} Bxd5 {[%emt 0:01:01]} 19. exd5 {[%emt 0:02:51]} exf4 {[%emt 0:02:02]} 20. Rxf4 {[%emt 0:04:08]} a5 {[%emt 0:00:35]} 21. g5 {[%emt 0:04:49]} Nd7 {[%emt 0:00:38]} 22. g6 {[%emt 0:02:02]} fxg6 {[%emt 0:04:59]} 23. Bd4 {[%emt 0:09:33]} Bf6 {[%emt 0:04:02]} 24. Re1+ {[%emt 0:09:26]} Ne5 {[%emt 0:01:09]} 25. Qd3 {[%emt 0:03:10]} O-O {[%emt 0:04:13]} 26. Bxe5 {[%emt 0:02:35]} Bxe5 {[%emt 0:00:59]} 27. Rxf8+ {[%emt 0:02:29]} Qxf8 {[%emt 0:03:36]} 28. Rxe5 {[%emt 0:01:03]} dxe5 {[%emt 0:00:22]} 29. d6 {[%emt 0:00:04]} e4 {[%emt 0:07:26]} 30. Bxe4 {[%emt 0:09:18]} Rd7 {[%emt 0:02:56]} 31. Qc4+ {[%emt 0:02:30]} Kh8 {[%emt 0:03:29]} 32. Bxg6 {[%emt 0:02:48]} Qd8 {[%emt 0:03:58]} 33. Qc5 {[%emt 0:02:06]} Rxd6 {[%emt 0:02:16]} 34. Qh5+ {[%emt 0:00:15]} Kg8 {[%emt 0:00:04]} 35. Qh7+ {[%emt 0:00:35]} Kf8 {[%emt 0:00:05]} 36. Qh8+ {[%emt 0:00:03]} Ke7 {[%emt 0:00:03]} 37. Qxg7+ {[%emt 0:00:14]} Ke6 {[%emt 0:00:03]} 38. Bf7+ {[%emt 0:01:45]} Kf5 {[%emt 0:01:50]} 39. Qg4+ {[%emt 0:02:57]} Kf6 {[%emt 0:00:26]} 40. Bh5 {[%emt 0:01:06]} Qb6+ {[%emt 0:00:41]} 41. Kf1 {[%emt 0:00:18]} Qb5+ {[%emt 0:00:10]} 42. Kf2 {[%emt 0:00:57]} Qc5+ {[%emt 0:00:47]} 43. Kf1 {[%emt 0:00:35]} Qf5+ {[%emt 0:00:47]} 44. Qxf5+ {[%emt 0:00:01]} Kxf5 {[%emt 0:00:07]} 45. Ke2 {[%emt 0:00:09]} Kf4 {[%emt 0:00:17]} 46. c3 {[%emt 0:01:05]} bxc3 {[%emt 0:00:19]} 47. bxc3 {[%emt 0:00:02]} Kg3 {[%emt 0:01:53]} 48. Bg4 {[%emt 0:00:03]} Rg6 {[%emt 0:00:06]} 49. Bd7 {[%emt 0:01:00]} Rg7 {[%emt 0:00:11]} 50. Bf5 {[%emt 0:00:19]} Rg5 {[%emt 0:00:05]} 51. Bd7 {[%emt 0:00:31]} Re5+ {[%emt 0:00:04]} 52. Kf1 {[%emt 0:00:03]} Rc5 {[%emt 0:00:04]} 53. Be6 {[%emt 0:01:39]} Rxc3 {[%emt 0:00:05]} 54. Ke2 {[%emt 0:00:11]} Rc6 {[%emt 0:00:06]} 55. Bd5 {[%emt 0:00:22]} Rc5 {[%emt 0:00:03]} 0-1